[Event "Festival Groningen-A 2024"]
[Site "Groningen"]
[Date "2024.12.21"]
[Round "1.7"]
[White "De Winter, Arthur"]
[Black "Cernov, Henrik"]
[Result "1-0"]
[ECO "D02"]
[WhiteElo "2446"]
[BlackElo "2187"]
[Annotator "TA"]
[PlyCount "57"]
[EventDate "2024.12.21"]
[EventType "swiss"]
[EventCountry "NED"]
[SourceTitle "playchess.com"]
[Source "ChessBase"]
[SourceQuality "1"]
[TimeControl "40/5400+30:1800+30"]

{[%evp 11,57,8,25,14,25,22,17,9,8,8,16,0,33,0,1,0,12,0,43,20,58,28,49,38,62,29,71,35,55,15,53,46,46,62,60,64,135,140,149,141,235,246,440,422,595,604,796,757]} 1. d4 {[%emt 0:01:32]} Nf6 {[%emt 0:00:42]} 2. Nf3 {[%emt 0:01:14]} e6 {[%emt 0:00:43]} 3. Bf4 {[%emt 0:00:21]} c5 {[%emt 0:02:08]} 4. e3 {[%emt 0:00:14]} Nc6 {[%emt 0:00:25]} 5. Nbd2 {[%emt 0:00:23]} d5 {[%emt 0:00:55]} 6. c3 {[%emt 0:00:19]} cxd4 {[%emt 0:00:11]} 7. exd4 {[%emt 0:00:10]} Nh5 {[%emt 0:00:25]} 8. Be3 {[%emt 0:00:36]} Bd6 {[%emt 0:00:10]} 9. Bd3 {[%emt 0:00:15]} Nf4 {[%emt 0:00:45]} 10. Bxf4 {[%emt 0:00:05]} Bxf4 {[%emt 0:00:01]} 11. g3 {[%emt 1:30:51]} Bh6 {[%emt 0:00:43]} 12. O-O {[%emt 0:00:00]} O-O {[%emt 0:01:34]} 13. Re1 {[%emt 0:00:00]} g6 {[%emt 0:03:04]} 14. h4 {[%emt 0:00:00]} Ne7 {[%emt 0:24:20][%cal Bc6e7,Be7f5,Bf5d6,Bd6e4][%mdl 32]} 15. Kg2 {[%emt 0:00:00]} Nf5 {[%emt 0:01:10]} 16. Qe2 {[%emt 0:00:00]} Bg7 {[%emt 0:03:18]} 17. Nf1 {[%emt 0:00:00]} Bd7 {[%emt 0:05:00]} 18. Ne3 {[%emt 0:00:00]} Nd6 {[%emt 0:05:01]} 19. Rh1 {[%emt 0:00:00]} Ne4 {[%emt 0:06:21]} 20. Ne5 {[%emt 0:00:00]} Be8 {[%emt 0:04:59]} 21. h5 $1 {[%emt 0:00:00]} f6 {[%emt 0:02:07][%csl LRe5,LRh5]} 22. Nf3 {[%emt 0:00:00][%cal Be5f3,Bf3h4,Bh4f5][%mdl 32]} gxh5 {[%emt 0:00:26]} 23. c4 $1 {[%emt 0:00:00]} Bf7 {[%emt 0:10:52]} (23... Kh8 $14) 24. cxd5 $16 {[%emt 0:00:00]} exd5 {[%emt 0:00:01][%cal Of6f5] [#]} 25. Nh4 $1 {[%emt 0:00:00] White is more active.} Re8 {[%emt 0:00:45]} (25... Qe8 $16 26. Rac1 Ng5) 26. Nhf5 $18 {[%emt 0:00:00]} Bf8 $2 {[%emt 0:05:11]} (26... Ng5 27. Rxh5 Bg6) 27. Rxh5 {[%emt 0:00:00]} Bg6 {[%emt 0:03:46] [#]} (27... Bxh5 {might work better.} 28. Qxh5 Ng5) 28. Rah1 $1 {[%emt 0:00:00] Qg4 is the strong threat.} Ng5 {[%emt 0:01:55] [#]} (28... Qc8 29. Nxd5) 29. f4 $1 {[%emt 0:00:00]} 1-0

[Event "Festival Groningen-A 2024"]
[Site "Groningen"]
[Date "2024.12.21"]
[Round "1.8"]
[White "Grooten, Herman"]
[Black "De Boer, Eelke"]
[Result "1/2-1/2"]
[ECO "D37"]
[WhiteElo "2183"]
[BlackElo "2426"]
[Annotator "TA"]
[PlyCount "196"]
[EventDate "2024.12.21"]
[EventType "swiss"]
[EventCountry "NED"]
[SourceTitle "playchess.com"]
[Source "ChessBase"]
[SourceQuality "1"]
[TimeControl "40/5400+30:1800+30"]

{[%evp 9,195,22,32,29,29,32,41,29,35,14,18,12,41,43,36,51,37,17,20,30,22,6,8,12,13,0,18,21,33,22,40,35,33,31,115,0,0,0,0,0,0,-85,-83,-79,-86,-64,-64,-68,-69,-64,-65,-96,-94,-154,-86,-93,-93,-154,-128,-173,-78,-78,-78,-78,-71,-71,-47,-47,-18,-18,0,0,0,0,0,-7,0,0,0,0,0,0,0,-17,0,0,0,0,0,0,0,0,0,0,0,0,0,0,0,0,0,0,0,0,0,0,0,0,0,0,0,0,0,0,0,0,0,0,0,0,0,0,0,0,0,0,0,0,0,0,0,0,0,0,0,0,0,0,0,0,0,0,0,0,0,0,0,0,0,0,0,0,0,0,0,0,0,0,0,0,0,0,0,0,0,0,0,0,0,0,0,0,0,0,0,0,0,0,0,0,0,0,0,0,0,0,0,0]} 1. d4 {[%emt 0:00:04]} Nf6 {[%emt 0:00:07]} 2. c4 {[%emt 0:00:05]} e6 {[%emt 0:00:09]} 3. Nf3 {[%emt 0:00:08]} d5 {[%emt 0:00:11]} 4. Nc3 {[%emt 0:00:21]} a6 {[%emt 0:03:38]} 5. cxd5 {[%emt 0:00:22]} exd5 {[%emt 0:00:09]} 6. Bg5 {[%emt 0:00:15]} Be6 {[%emt 0:01:11]} 7. e3 {[%emt 0:01:28]} Be7 {[%emt 0:04:02]} 8. Bd3 {[%emt 0:01:00]} O-O {[%emt 0:00:19]} 9. Qc2 {[%emt 0:00:29]} h6 {[%emt 0:03:18]} 10. Bh4 {[%emt 0:01:11]} b6 {[%emt 0:06:54]} 11. Rd1 {[%emt 0:04:22]} c5 {[%emt 0:07:30]} 12. dxc5 {[%emt 0:08:53]} bxc5 {[%emt 0:00:27]} 13. Bxf6 {[%emt 0:16:50]} Bxf6 {[%emt 0:00:22] [#]} 14. Bc4 $1 {[%emt 0:01:26][%cal Rc4d5]} Bxc3+ {[%emt 0:17:23]} 15. bxc3 {[%emt 0:04:45]} Ra7 {[%emt 0:01:14]} 16. O-O {[%emt 0:02:02][%cal Oc4d5]} Rd7 {[%emt 0:00:11]} 17. Be2 {[%emt 0:00:28]} (17. Bd3 Rd6 18. c4 dxc4 19. Bxc4 Bxc4 20. Rxd6 Qxd6 21. Qxc4 Nd7 22. h3) 17... Qa5 {[%emt 0:02:44]} 18. Ne5 {[%emt 0:01:36]} Rc7 {[%emt 0:04:21]} 19. f4 {[%emt 0:11:22][%cal Bf2f4,Bf4f5][%mdl 32]} d4 {[%emt 0:11:08]} 20. f5 {[%emt 0:08:45]} (20. exd4 cxd4 21. Rxd4 Rxc3 $15) 20... Qxa2 {[%emt 0:01:41]} 21. Qd3 {[%emt 0:00:41][%cal Oe3d4]} (21. Qxa2 Bxa2 22. cxd4 cxd4 23. exd4 Rd8 24. Rc1) 21... Nd7 {[%emt 0:01:22] [#]} (21... Bb3 $14 22. Rd2 Qa5) 22. exd4 {[%emt 0:02:13] White is more active.} (22. Ng4 $1 $16 {[%cal Oe3d4] Hoping for exd4!.} Bb3 23. Rd2) 22... cxd4 $11 {[%emt 0:00:37]} 23. cxd4 {[%emt 0:08:39]} Nxe5 {[%emt 0:01:02]} 24. dxe5 {[%emt 0:00:23]} Bc4 {[%emt 0:04:25]} 25. Qd6 {[%emt 0:00:33]} (25. Rd2 $11 Bxd3 26. Rxa2) 25... Bxe2 $17 {[%emt 0:00:30]} 26. Qxc7 {[%emt 0:00:12]} Bxd1 {[%emt 0:00:13]} 27. Rxd1 {[%emt 0:00:29][%mdl 4096] Endgame KQR-KQR} Qe2 $36 {[%emt 0:00:10][%mdl 2048] Black is pushing.} 28. Rf1 {[%emt 0:04:15]} Re8 {[%emt 0:00:39]} 29. e6 {[%emt 0:00:30]} fxe6 {[%emt 0:00:36]} 30. Qd7 {[%emt 0:03:53]} Rf8 {[%emt 0:11:12]} 31. h3 {[%emt 0:01:10] [#]} (31. f6 $142 gxf6 (31... Rxf6 32. Qe8+ Kh7 33. Rxf6 $11) 32. Qd4) 31... Qe5 {[%emt 0:04:35]} (31... Rf6 $142 $1 32. Rf3 Qe1+ 33. Kh2 Qe5+ 34. Rg3 Rxf5 (34... Qxf5 35. Qxg7#) 35. Qd8+ Rf8) 32. Qa7 {[%emt 0:06:09]} Qb5 {[%emt 0:03:03]} (32... Rxf5 $6 33. Rxf5 Qxf5 (33... exf5 34. Qxa6 Qe3+ 35. Kh2 $11) 34. Qxa6 $11) (32... exf5 33. Qxa6 Kh7 34. Qd3 $11) (32... Rxf5 {simplifies} 33. Rxf5 Qxf5 34. Qxa6 Qe4) 33. Re1 {[%emt 0:05:24]} (33. f6 $142 Rxf6 34. Rxf6 gxf6 35. Qe7) 33... Qxf5 {[%emt 0:04:28]} 34. Kh1 {[%emt 0:03:41]} Qf2 {[%emt 0:05:59]} (34... a5 $19 {has better winning chances. and ...Qd5 should not be overlooked} 35. Qc7 a4) 35. Qxf2 {[%emt 0:00:08]} Rxf2 {[%emt 0:00:02] KR-KR. Black is two pawns up.} 36. Ra1 {[%emt 0:04:18] Prevents Ra2} Kf7 {[%emt 0:00:22]} 37. Kh2 {[%emt 0:00:00]} g5 {[%emt 0:01:30]} 38. Rxa6 {[%emt 0:00:00]} Kf6 {[%emt 0:00:13]} 39. Ra8 {[%emt 0:00:00]} Ke5 {[%emt 0:01:08]} 40. Rh8 {[%emt 0:00:00]} Rf6 {[%emt 0:00:11]} 41. Kg3 {[%emt 0:28:34]} Ke4 {[%emt 0:04:20]} 42. Ra8 {[%emt 0:00:00]} e5 {[%emt 0:05:02]} 43. Ra4+ {[%emt 0:00:00]} Kd5 {[%emt 0:00:07]} 44. Ra5+ {[%emt 0:00:00]} Ke6 {[%emt 0:00:07]} 45. Ra4 {[%emt 0:00:00]} h5 {[%emt 0:00:34]} 46. h4 {[%emt 0:00:00]} Rf4 {[%emt 0:06:07]} 47. Ra6+ {[%emt 0:00:00]} Kf5 {[%emt 0:00:07]} 48. hxg5 {[%emt 0:00:00]} Kxg5 {[%emt 0:00:11]} 49. Ra8 {[%emt 0:00:00]} Rb4 {[%emt 0:08:42]} 50. Kf3 {[%emt 0:00:00]} Rf4+ {[%emt 0:04:50]} 51. Ke3 {[%emt 0:00:00]} Rg4 {[%emt 0:03:47]} 52. Kf3 {[%emt 0:00:00]} Kh4 {[%emt 0:00:25]} 53. Rh8 {[%emt 0:00:00]} Rg3+ {[%emt 0:01:48]} 54. Kf2 {[%emt 0:00:00]} Rg5 {[%emt 0:00:59]} 55. Ra8 {[%emt 0:00:00]} Rf5+ {[%emt 0:00:16]} 56. Ke3 {[%emt 0:00:00]} Kg4 {[%emt 0:00:57]} 57. Ke4 {[%emt 0:00:48]} Rg5 {[%emt 0:00:07]} 58. Ra3 {[%emt 0:00:58]} h4 {[%emt 0:00:08]} 59. Rf3 {[%emt 0:02:30]} Rh5 {[%emt 0:00:16]} 60. Rf8 {[%emt 0:04:11]} Rg5 {[%emt 0:01:06]} (60... Kg3 $5 61. Rg8+ $8 Kh2 $11) 61. Rf3 {[%emt 0:00:07]} Rg8 {[%emt 0:00:19]} 62. Kxe5 {[%emt 0:02:34]} Re8+ {[%emt 0:00:02]} 63. Kd4 {[%emt 0:00:08]} Re2 {[%emt 0:00:12]} 64. Rf8 {[%emt 0:00:35]} Rxg2 {[%emt 0:00:47]} 65. Ke3 {[%emt 0:00:08]} Kg3 {[%emt 0:00:32]} 66. Rg8+ {[%emt 0:00:59]} Kh2 {[%emt 0:00:09]} 67. Rh8 {[%emt 0:00:05]} h3 {[%emt 0:00:29]} 68. Kf3 {[%emt 0:00:06]} Rg7 {[%emt 0:00:30]} 69. Ra8 {[%emt 0:01:41]} Rg3+ {[%emt 0:01:13]} 70. Kf2 {[%emt 0:00:08]} Rb3 {[%emt 0:00:29]} 71. Rh8 {[%emt 0:00:50]} Rb7 {[%emt 0:00:18]} 72. Rf8 {[%emt 0:01:00]} Rg7 {[%emt 0:01:19]} 73. Kf1 {[%emt 0:00:40]} Rg1+ {[%emt 0:00:50]} 74. Kf2 {[%emt 0:00:05]} Rg5 {[%emt 0:00:09]} 75. Kf1 {[%emt 0:00:09]} Kh1 {[%emt 0:00:24]} 76. Rf7 {[%emt 0:00:35]} Rg2 {[%emt 0:00:59]} 77. Rf3 {[%emt 0:00:41]} Kh2 {[%emt 0:00:27]} 78. Rf8 {[%emt 0:00:27]} Rg1+ {[%emt 0:00:25]} 79. Kf2 {[%emt 0:00:05]} Ra1 {[%emt 0:00:05]} 80. Rf7 {[%emt 0:00:58]} Ra2+ {[%emt 0:00:28]} 81. Kf1 {[%emt 0:00:26]} Ra6 {[%emt 0:00:56]} 82. Kf2 {[%emt 0:00:26]} Rb6 {[%emt 0:00:06]} 83. Rf8 {[%emt 0:00:04]} Kh1 {[%emt 0:00:27]} 84. Rf7 {[%emt 0:02:09]} Rb3 {[%emt 0:00:20]} 85. Rf8 {[%emt 0:00:08]} Rb7 {[%emt 0:00:12]} 86. Rf6 {[%emt 0:00:04]} Kh2 {[%emt 0:00:38]} 87. Rf8 {[%emt 0:00:08]} Rb6 {[%emt 0:00:22]} 88. Rf7 {[%emt 0:00:15]} Rb8 {[%emt 0:00:06]} 89. Rf6 {[%emt 0:00:14]} Rb2+ {[%emt 0:00:08]} 90. Kf1 {[%emt 0:00:19]} Kg3 {[%emt 0:01:05]} 91. Rg6+ {[%emt 0:00:08]} Kf3 {[%emt 0:00:35][%cal Rb2b1]} 92. Rf6+ {[%emt 0:00:13]} Kg3 {[%emt 0:00:07]} 93. Rg6+ {[%emt 0:00:11]} Kh2 {[%emt 0:00:08]} 94. Rf6 {[%emt 0:00:16]} Rg2 {[%emt 0:00:20]} 95. Rf8 {[%emt 0:01:11]} Rg7 {[%emt 0:00:50]} 96. Rf2+ {[%emt 0:01:48]} Kg3 {[%emt 0:00:22] ( -> ...Ra7)} 97. Kg1 {[%emt 0:00:12]} Ra7 {[%emt 0:01:27]} 98. Rg2+ {[%emt 0:00:13]} hxg2 {[%emt 0:02:03]} 1/2-1/2

[Event "Festival Groningen-A 2024"]
[Site "Groningen"]
[Date "2024.12.21"]
[Round "1.9"]
[White "Stijve, Theo"]
[Black "Ritzerveld, Noah"]
[Result "1-0"]
[ECO "C84"]
[WhiteElo "2396"]
[BlackElo "2182"]
[Annotator "TA"]
[PlyCount "95"]
[EventDate "2024.12.21"]
[EventType "swiss"]
[EventCountry "NED"]
[SourceTitle "playchess.com"]
[Source "ChessBase"]
[SourceQuality "1"]
[TimeControl "40/5400+30:1800+30"]

{[%evp 23,95,3,14,14,25,24,15,10,17,0,4,0,0,0,6,-17,8,-20,414,424,406,431,411,409,404,281,347,311,335,321,578,577,590,585,576,420,420,420,421,421,621,543,610,595,1172,1021,754,703,649,648,593,615,615,615,548,441,956,866,834,839,1017,978,2170,1814,1647,1581,2349,2312,1431,1266,29948,29949,5834,5591]} 1. e4 {[%emt 0:00:03]} e5 {[%emt 0:00:09][%cal Be7e5,Be5d4][%mdl 32]} 2. Nf3 {[%emt 0:00:05]} Nc6 {[%emt 0:00:04]} 3. Bb5 {[%emt 0:00:08]} a6 {[%emt 0:00:08]} 4. Ba4 {[%emt 0:00:06]} Nf6 {[%emt 0:00:10]} 5. d4 {[%emt 0:00:07]} exd4 {[%emt 0:02:29]} 6. O-O {[%emt 0:00:11]} Be7 {[%emt 0:01:51]} 7. Re1 {[%emt 0:00:10]} O-O {[%emt 0:07:21]} 8. e5 {[%emt 0:00:11]} Ne8 {[%emt 0:04:26]} 9. c3 {[%emt 0:00:10]} dxc3 {[%emt 0:03:48]} 10. Nxc3 {[%emt 0:01:24]} d6 {[%emt 0:00:51]} 11. exd6 {[%emt 0:00:46]} Nxd6 {[%emt 0:02:13]} 12. Nd5 {[%emt 0:01:50]} Be6 {[%emt 0:05:08]} 13. Bxc6 {[%emt 0:07:13]} bxc6 {[%emt 0:00:00]} 14. Nxe7+ {[%emt 0:00:09]} Qxe7 {[%emt 0:00:01]} 15. Bg5 {[%emt 0:01:30][%cal Bc1g5,Bg5e7,Be7d6][%mdl 32] Prevents Qf6} Qe8 {[%emt 0:11:09] Black is weak on the dark squares} 16. Rc1 {[%emt 0:04:49][%mdl 1024] White has compensation.} Qb8 {[%emt 0:04:27]} 17. b3 {[%emt 0:04:31][%cal Of3e5]} Bd5 {[%emt 0:02:22]} 18. Nd4 {[%emt 0:09:35]} Re8 {[%emt 0:02:10]} 19. h4 {[%emt 0:09:34]} (19. Nxc6 Bxc6 20. Rxc6 Qb5 21. Rxd6 (21. Rxc7 $2 Rxe1+ 22. Qxe1 Qxg5 $19) (21. Rxe8+ $2 Rxe8 22. Rxd6 cxd6 $19) 21... Rxe1+ (21... cxd6 $2 22. Be3 $19) 22. Qxe1 cxd6 $19) 19... Qb4 {[%emt 0:03:18] and ...Rxe1+ should not be overlooked} 20. Be7 {[%emt 0:12:43]} (20. Nxc6 $2 Bxc6 21. Be7 Qb7 $19) 20... Be4 $2 {[%emt 0:19:39][%mdl 8192]} (20... c5 $11 {and Black has nothing to worry.} 21. Bxd6 (21. Nf3 Be4 $15) 21... Qxe1+ (21... Qxd4 22. Qxd4 cxd4 23. Bxc7 $14) (21... cxd6 22. Nf5 $15) 22. Qxe1 Rxe1+ 23. Rxe1 cxd6 (23... cxd4 24. Bxc7 Rc8 25. Ba5 $16)) 21. Rxe4 $18 {[%emt 0:04:01]} ({Not} 21. Nxc6 Qb5 22. a4 Qf5 $14) 21... c5 {[%emt 0:02:31]} 22. Bxd6 {[%emt 0:03:35]} Rxe4 {[%emt 0:01:01]} 23. Bxc5 {[%emt 0:01:11]} Qb7 {[%emt 0:03:44]} 24. Nf3 {[%emt 0:02:47]} Rae8 {[%emt 0:03:21]} 25. Be3 {[%emt 0:03:26]} c6 {[%emt 0:01:22]} 26. Qc2 {[%emt 0:02:07]} R4e6 $2 {[%emt 0:01:19]} (26... Qe7 27. Qxc6 Re6) 27. Ng5 {[%emt 0:01:37][%csl LRe6,LRh7]} Rg6 {[%emt 0:00:44]} 28. h5 {[%emt 0:04:04]} Rh6 {[%emt 0:02:22] [#]} 29. Nxf7 $1 {[%emt 0:06:09][%mdl 512]} Qxf7 {[%emt 0:01:54]} 30. Bxh6 {[%emt 0:00:12]} gxh6 {[%emt 0:00:51]} 31. Qxc6 {[%emt 0:03:06][%mdl 4096] Endgame KQR-KQR. White is two pawns up.} Re6 {[%emt 0:02:23]} (31... Rf8 $142 32. Qc4 (32. Qxa6 Qxf2+ 33. Kh1 Qh4+ 34. Kg1 Qf2+ 35. Kh1 Qh4+ 36. Kg1 Qd4+ 37. Kh1 Qh4+ $11) 32... a5 33. Qxf7+ Rxf7) 32. Qc8+ {[%emt 0:01:12]} Kg7 {[%emt 0:00:51]} 33. Rc7 {[%emt 0:00:50]} Re7 {[%emt 0:00:14]} 34. Qg4+ {[%emt 0:01:33]} Kh8 {[%emt 0:02:05]} 35. Qd4+ {[%emt 0:02:28]} Kg8 {[%emt 0:00:08]} 36. Qd8+ {[%emt 0:00:16]} Re8 {[%emt 0:00:24]} 37. Rxf7 {[%emt 0:00:17]} Rxd8 {[%emt 0:00:12] KR-KR. White is two pawns up.} 38. Rf6 {[%emt 0:00:11][%csl LRa6,LRh6]} a5 {[%emt 0:00:35]} 39. Rf5 {[%emt 0:05:00] Dodges Rd5} (39. Rxh6 Rd1+ 40. Kh2 Rd2 $18) 39... a4 {[%emt 0:02:35]} (39... Ra8 $142 40. a4 Kg7) 40. bxa4 {[%emt 0:00:31]} Rd4 {[%emt 0:00:13]} 41. a5 {[%emt 0:30:24]} Ra4 {[%emt 0:30:20]} 42. Kf1 {[%emt 0:00:23]} Rxa2 {[%emt 0:00:19]} 43. Ke1 {[%emt 0:00:08]} Rc2 {[%emt 0:01:49]} 44. Kd1 {[%emt 0:00:32]} Ra2 {[%emt 0:01:08]} 45. Kc1 {[%emt 0:00:08] aiming for Kb1.} Kg7 {[%emt 0:00:47]} 46. Kb1 {[%emt 0:00:11]} Ra4 {[%emt 0:00:07]} 47. Kb2 {[%emt 0:00:21]} Rg4 {[%emt 0:00:15]} 48. g3 {[%emt 0:00:31]} 1-0

[Event "Festival Groningen-A 2024"]
[Site "Groningen"]
[Date "2024.12.21"]
[Round "1.10"]
[White "Keuning, Selwin"]
[Black "Maatman, Nick"]
[Result "0-1"]
[ECO "B22"]
[WhiteElo "2180"]
[BlackElo "2375"]
[Annotator "RC"]
[PlyCount "136"]
[EventDate "2024.12.21"]
[EventType "swiss"]
[EventCountry "NED"]
[SourceTitle "playchess.com"]
[Source "ChessBase"]
[SourceQuality "1"]
[TimeControl "40/5400+30:1800+30"]

1. e4 {[%emt 0:00:06]} c5 {[%emt 0:00:03]} 2. c3 {[%emt 0:00:15]} Nf6 {[%emt 0:00:09]} 3. e5 {[%emt 0:00:19]} Nd5 {[%emt 0:00:02]} 4. Nf3 {[%emt 0:00:54]} d6 {[%emt 0:00:42]} 5. d4 {[%emt 0:00:41]} cxd4 {[%emt 0:01:10]} 6. cxd4 {[%emt 0:01:29]} Nc6 {[%emt 0:00:06]} 7. Bc4 {[%emt 0:00:11]} dxe5 {[%emt 0:00:45]} 8. Nxe5 {[%emt 0:00:17]} e6 {[%emt 0:00:05]} 9. O-O {[%emt 0:00:18]} Be7 {[%emt 0:01:32]} 10. Nxc6 {[%emt 0:00:30]} bxc6 {[%emt 0:00:01]} 11. Nc3 {[%emt 0:00:24]} O-O {[%emt 0:01:03]} 12. Qd3 {[%emt 0:02:58]} a5 {[%emt 0:03:27]} 13. Rd1 {[%emt 0:02:23]} a4 {[%emt 0:13:53]} 14. Qe4 {[%emt 0:17:49]} Ba6 {[%emt 0:04:12]} 15. Bd3 {[%emt 0:04:39]} Bxd3 {[%emt 0:03:02]} 16. Rxd3 {[%emt 0:02:43]} Nxc3 {[%emt 0:03:05]} 17. Rxc3 {[%emt 0:11:59]} Qd5 {[%emt 0:00:59]} 18. Qc2 {[%emt 0:02:24]} Bf6 {[%emt 0:17:29]} 19. Be3 {[%emt 0:06:37]} Rfb8 {[%emt 0:00:57]} 20. Rc5 {[%emt 0:20:49]} Rxb2 {[%emt 0:16:17]} 21. Qc1 {[%emt 0:03:37]} Qd6 {[%emt 0:00:13]} 22. Rxc6 {[%emt 0:02:07]} Qd5 {[%emt 0:10:45]} 23. Rc5 {[%emt 0:05:09]} Qb7 {[%emt 0:00:01]} 24. Rc7 {[%emt 0:01:26]} Qb8 {[%emt 0:00:03]} 25. a3 {[%emt 0:06:44]} Rb3 {[%emt 0:02:17]} 26. g3 {[%emt 0:03:55]} h6 {[%emt 0:01:34]} 27. Qc6 {[%emt 0:01:15]} Qf8 {[%emt 0:00:15]} 28. Kg2 {[%emt 0:01:05]} Rbb8 {[%emt 0:02:14]} 29. Ra2 {[%emt 0:01:06]} Rd8 {[%emt 0:01:18]} 30. Rd7 {[%emt 0:00:38]} Rxd7 {[%emt 0:03:00]} 31. Qxd7 {[%emt 0:00:01]} Be7 {[%emt 0:00:07]} 32. Qc6 {[%emt 0:01:01]} Ra5 {[%emt 0:02:28]} 33. Rc2 {[%emt 0:00:31]} Bxa3 {[%emt 0:09:41]} 34. Qb7 {[%emt 0:00:28]} Ra8 {[%emt 0:00:58]} 35. Rc7 {[%emt 0:00:18]} Rb8 {[%emt 0:02:03]} 36. Qa7 {[%emt 0:00:20]} Bd6 {[%emt 0:00:17]} 37. Rd7 {[%emt 0:00:20]} a3 {[%emt 0:00:17]} 38. d5 {[%emt 0:00:42]} Ra8 {[%emt 0:01:14]} 39. Qb6 {[%emt 0:00:11]} a2 {[%emt 0:00:46]} 40. Bd4 {[%emt 0:00:06]} e5 {[%emt 0:00:46]} 41. Ba1 {[%emt 0:02:40]} Bc5 {[%emt 0:03:39]} 42. Qc6 {[%emt 0:05:38]} Qe8 {[%emt 0:08:28]} 43. Rb7 {[%emt 0:10:17]} Qxc6 {[%emt 0:13:07]} 44. dxc6 {[%emt 0:00:15]} Rc8 {[%emt 0:00:07]} 45. Rb2 {[%emt 0:11:37]} Rxc6 {[%emt 0:00:33]} 46. Rxa2 {[%emt 0:04:18]} Bd6 {[%emt 0:00:12]} 47. Kf3 {[%emt 0:00:00]} f5 {[%emt 0:00:45]} 48. Ra5 {[%emt 0:00:00]} e4+ {[%emt 0:04:17]} 49. Ke3 {[%emt 0:00:00]} Bc5+ {[%emt 0:01:24]} 50. Bd4 {[%emt 0:00:00]} Bxd4+ {[%emt 0:00:29]} 51. Kxd4 {[%emt 0:00:00]} g6 {[%emt 0:00:25]} 52. Ke5 {[%emt 0:00:14]} h5 {[%emt 0:01:18]} 53. Ra7 {[%emt 0:00:41]} Kf8 {[%emt 0:00:46]} 54. h4 {[%emt 0:01:39]} Rb6 {[%emt 0:00:21]} 55. Ra3 {[%emt 0:01:13]} Kg7 {[%emt 0:00:18]} 56. f3 {[%emt 0:00:24]} exf3 {[%emt 0:00:40]} 57. Rxf3 {[%emt 0:00:01]} Rb4 {[%emt 0:00:10]} 58. Re3 {[%emt 0:01:01]} Rg4 {[%emt 0:00:29]} 59. Ra3 {[%emt 0:00:41]} Re4+ {[%emt 0:00:04]} 60. Kd5 {[%emt 0:00:04]} Re7 {[%emt 0:01:18]} 61. Kd6 {[%emt 0:00:21]} Kf6 {[%emt 0:00:21]} 62. Rb3 {[%emt 0:00:51]} Re8 {[%emt 0:00:19]} 63. Ra3 {[%emt 0:01:20]} g5 {[%emt 0:01:28]} 64. Kd5 {[%emt 0:00:00]} gxh4 {[%emt 0:00:31]} 65. gxh4 {[%emt 0:00:00]} f4 {[%emt 0:00:24]} 66. Ra7 {[%emt 0:00:53]} Kf5 {[%emt 0:00:22]} 67. Rg7 {[%emt 0:00:10]} Rd8+ {[%emt 0:00:13]} 68. Kc4 {[%emt 0:00:03]} f3 {[%emt 0:02:46]} 0-1

[Event "Festival Groningen-A 2024"]
[Site "Groningen"]
[Date "2024.12.21"]
[Round "1.11"]
[White "Palchuk, Andrii"]
[Black "Mareau, Timothe"]
[Result "1/2-1/2"]
[ECO "A87"]
[WhiteElo "2372"]
[BlackElo "2168"]
[Annotator "RC"]
[PlyCount "43"]
[EventDate "2024.12.21"]
[EventType "swiss"]
[EventCountry "NED"]
[SourceTitle "playchess.com"]
[Source "ChessBase"]
[SourceQuality "1"]
[TimeControl "40/5400+30:1800+30"]

1. d4 {[%emt 0:15:05]} f5 {[%emt 0:00:38]} 2. g3 {[%emt 0:00:30]} Nf6 {[%emt 0:00:16]} 3. Bg2 {[%emt 0:00:07]} g6 {[%emt 0:00:09]} 4. Nf3 {[%emt 0:01:07]} Bg7 {[%emt 0:00:19]} 5. O-O {[%emt 0:00:06]} d6 {[%emt 0:00:08]} 6. c4 {[%emt 0:03:59]} O-O {[%emt 0:00:12]} 7. Qc2 {[%emt 0:02:56]} Qe8 {[%emt 0:06:10]} 8. d5 {[%emt 0:07:21]} e5 {[%emt 0:03:54]} 9. dxe6 {[%emt 0:00:43]} Nc6 {[%emt 0:00:06]} 10. Nc3 {[%emt 0:20:53]} Bxe6 {[%emt 0:04:29]} 11. Nb5 {[%emt 0:00:12]} Nb4 {[%emt 0:25:40]} 12. Qc3 {[%emt 0:03:30]} Na6 {[%emt 0:11:44]} 13. Qc2 {[%emt 0:04:57]} Nb4 {[%emt 0:07:48]} 14. Qd1 {[%emt 0:07:04]} Qe7 {[%emt 0:09:33]} 15. Bd2 {[%emt 0:04:08]} Bxc4 {[%emt 0:03:55]} 16. Na3 {[%emt 0:00:05]} d5 {[%emt 0:04:59]} 17. Nxc4 {[%emt 0:05:12]} dxc4 {[%emt 0:00:06]} 18. Qc1 {[%emt 0:02:24]} Nbd5 {[%emt 0:03:15]} 19. Qxc4 {[%emt 0:00:11]} c6 {[%emt 0:01:30]} 20. Rad1 {[%emt 0:00:50]} Rfe8 {[%emt 0:00:29]} 21. Rfe1 {[%emt 0:00:39]} Kh8 {[%emt 0:01:04]} 22. Bc1 {[%emt 0:04:42]} 1/2-1/2

[Event "Festival Groningen-A 2024"]
[Site "Groningen"]
[Date "2024.12.21"]
[Round "1.12"]
[White "Hummel, Paul"]
[Black "Slagboom, Leandro"]
[Result "1/2-1/2"]
[ECO "E62"]
[WhiteElo "2160"]
[BlackElo "2370"]
[Annotator "RC"]
[PlyCount "70"]
[EventDate "2024.12.21"]
[EventType "swiss"]
[EventCountry "NED"]
[SourceTitle "playchess.com"]
[Source "ChessBase"]
[SourceQuality "1"]
[TimeControl "40/5400+30:1800+30"]

1. d4 {[%emt 0:00:05]} Nf6 {[%emt 0:00:17]} 2. c4 {[%emt 0:00:05]} g6 {[%emt 0:00:19]} 3. Nf3 {[%emt 0:00:15]} Bg7 {[%emt 0:00:05]} 4. g3 {[%emt 0:00:05]} d6 {[%emt 0:00:38]} 5. Bg2 {[%emt 0:00:05]} O-O {[%emt 0:00:31]} 6. O-O {[%emt 0:00:07]} Bg4 {[%emt 0:01:11]} 7. h3 {[%emt 0:02:00]} Bxf3 {[%emt 0:02:17]} 8. Bxf3 {[%emt 0:00:13]} Nc6 {[%emt 0:00:07]} 9. Nc3 {[%emt 0:01:24]} e5 {[%emt 0:01:02]} 10. Bxc6 {[%emt 0:06:05]} exd4 {[%emt 0:08:02]} 11. Bxb7 {[%emt 0:03:55]} Rb8 {[%emt 0:00:06]} 12. Bg2 {[%emt 0:06:20]} dxc3 {[%emt 0:00:06]} 13. bxc3 {[%emt 0:00:01]} Nd7 {[%emt 0:03:37]} 14. Be3 {[%emt 0:03:01]} Nc5 {[%emt 0:08:45]} 15. Qc2 {[%emt 0:13:33]} Qf6 {[%emt 0:01:53]} 16. Bxc5 {[%emt 0:07:11]} dxc5 {[%emt 0:02:46]} 17. Rad1 {[%emt 0:04:35]} Qxc3 {[%emt 0:17:47]} 18. Qxc3 {[%emt 0:01:11]} Bxc3 {[%emt 0:00:05]} 19. Rd3 {[%emt 0:02:33]} Ba5 {[%emt 0:03:48]} 20. Ra3 {[%emt 0:04:57]} Bb6 {[%emt 0:00:12]} 21. Rd1 {[%emt 0:01:49]} Rfd8 {[%emt 0:01:30]} 22. Rad3 {[%emt 0:01:37]} Rxd3 {[%emt 0:00:59]} 23. Rxd3 {[%emt 0:00:02]} Ba5 {[%emt 0:02:21]} 24. Rd7 {[%emt 0:12:31]} Rb1+ {[%emt 0:02:48]} 25. Kh2 {[%emt 0:00:04]} Rb2 {[%emt 0:00:17]} 26. Bd5 {[%emt 0:00:44]} Rxe2 {[%emt 0:01:24]} 27. Rxf7 {[%emt 0:01:51]} Kh8 {[%emt 0:00:12]} 28. g4 {[%emt 0:05:08]} g5 {[%emt 0:07:13]} 29. a4 {[%emt 0:06:36]} Bc3 {[%emt 0:02:22]} 30. Kg2 {[%emt 0:00:20]} Bd4 {[%emt 0:00:51]} 31. a5 {[%emt 0:03:06]} Ra2 {[%emt 0:04:21]} 32. Be4 {[%emt 0:05:58]} Kg8 {[%emt 0:00:36]} 33. Rxc7 {[%emt 0:02:08]} Rxf2+ {[%emt 0:00:35]} 34. Kg3 {[%emt 0:02:09]} Be5+ {[%emt 0:02:05]} 35. Kxf2 {[%emt 0:00:03]} Bxc7 {[%emt 0:00:05]} 1/2-1/2